bitfinex/quotes_SOLUSD_20250410
["timestamp","ask_amount","ask_price","bid_price","bid_amount"]
[1744289227211,26.95751922,113.72,113.71,0.063]
[1744289227514,26.95751922,113.73,113.71,0.063]
[1744289228119,26.95751922,113.72,113.71,0.063]
[1744289228325,26.95751922,113.76,113.71,0.063]
[1744289228507,26.95751922,113.72,113.71,0.063]
[1744289228915,26.95751922,113.76,113.71,0.063]
[1744289229137,26.95751922,113.73,113.71,0.063]
[1744289229913,7.5501,113.77,113.71,0.063]
[1744289230115,26.95751922,113.72,113.71,0.063]
[1744289232111,35.75101922,113.72,113.71,0.063]
[1744289232306,35.75101922,113.72,113.64,8.7997]
[1744289232307,62.70853844,113.72,113.64,8.7997]
[1744289232520,26.95751922,113.65,113.64,8.7997]
[1744289233129,26.95751922,113.65,113.61,30.8071]
[1744289233334,26.95751922,113.64,113.61,30.8071]
[1744289233534,26.95751922,113.7,113.61,57.76461922]
[1744289233844,26.95751922,113.68,113.62,18.933972]
[1744289234051,26.95751922,113.69,113.64,0.28432314]
[1744289234341,26.95751922,113.69,113.61,118.8275]
[1744289234641,26.95751922,113.68,113.64,26.95751922]
[1744289235140,26.95751922,113.69,113.65,26.95751922]
[1744289235342,26.95751922,113.7,113.66,26.95751922]
[1744289235727,8.2732,113.75,113.68,26.95751922]
[1744289235913,26.95751922,113.71,113.67,26.95751922]
[1744289236109,26.95751922,113.68,113.64,13.64]
[1744289236816,26.95751922,113.65,113.62,30.8043]
[1744289237022,26.95751922,113.63,113.61,8.802]
[1744289237223,26.95751922,113.64,113.61,30.8071]
[1744289237729,26.95751922,113.65,113.61,57.76461922]
[1744289237930,26.95751922,113.65,113.61,30.8071]
[1744289238520,7.8762,113.68,113.61,57.76461922]
[1744289238747,26.95751922,113.67,113.62,0.28432314]
[1744289239035,71.40970842,113.76,113.67,8.7973]
[1744289239036,8.1329,113.72,113.67,8.7973]
[1744289239253,26.95751922,113.71,113.67,35.75481922]
[1744289239433,35.09041922,113.72,113.67,8.7973]
[1744289239618,26.95751922,113.71,113.67,30.7907]
[1744289239819,26.95751922,113.71,113.67,57.74821922]
[1744289240642,26.95751922,113.69,113.66,8.7981]
[1744289240825,26.95751922,113.68,113.63,26.95751922]
[1744289241147,26.95751922,113.68,113.63,30.8016]
[1744289241454,26.95751922,113.65,113.63,8.8004]
[1744289242124,26.95751922,113.64,113.6,0.063]
[1744289242424,12.3728,113.68,113.6,0.063]
[1744289242425,26.95751922,113.62,113.6,0.063]
[1744289242623,26.95751922,113.62,113.6,8.8656]
[1744289242820,26.95751922,113.63,113.6,8.8656]
[1744289243236,8.2938,113.65,113.6,0.063]
[1744289243451,26.95751922,113.62,113.6,0.063]
[1744289243621,26.95751922,113.61,113.6,0.063]
[1744289244054,39.0903,113.65,113.6,0.063]
[1744289244255,26.95751922,113.61,113.6,0.063]
[1744289244434,45.60716808,113.61,113.6,0.063]
[1744289244918,26.95751922,113.61,113.6,0.063]
[1744289246729,26.95751922,113.63,113.6,0.063]
[1744289246935,26.95751922,113.62,113.6,0.063]
[1744289247244,26.95751922,113.61,113.6,0.063]
[1744289247628,8.8009,113.63,113.6,0.063]
[1744289247833,26.95751922,113.61,113.6,0.063]
[1744289248144,8.8009,113.63,113.6,0.063]
[1744289248145,26.95751922,113.63,113.6,0.063]
[1744289248352,26.0128,113.68,113.62,26.95751922]
[1744289248523,26.95751922,113.67,113.63,26.95751922]
[1744289248723,26.95751922,113.66,113.62,26.95751922]
[1744289248926,21.1696,113.68,113.61,26.95751922]
[1744289249229,39.81924886,113.68,113.61,26.95751922]
[1744289249545,26.95751922,113.65,113.61,8.8015]
[1744289249760,18.64964886,113.67,113.6,35.82291922]
[1744289249925,21.1696,113.68,113.62,26.95751922]
[1744289250124,26.95751922,113.66,113.62,26.95751922]
[1744289250530,21.1696,113.68,113.6,8.8654]
[1744289250843,26.95751922,113.66,113.61,26.95751922]
[1744289251053,26.95751922,113.65,113.61,26.95751922]
[1744289251253,26.95751922,113.66,113.62,26.95751922]
[1744289251472,35.75491922,113.67,113.63,8.8004]
[1744289251757,8.0802,113.69,113.64,26.95751922]
[1744289252057,35.03771922,113.69,113.65,26.95751922]
[1744289252242,35.03771922,113.69,113.64,26.95751922]
[1744289252440,8.0802,113.69,113.64,26.95751922]
[1744289252642,8.0802,113.69,113.65,26.95751922]
[1744289252943,26.95751922,113.7,113.65,26.95751922]
[1744289253135,26.95751922,113.69,113.64,0.28432314]
[1744289253337,21.4113,113.71,113.66,8.7981]
[1744289253526,26.95751922,113.7,113.66,35.75561922]
[1744289254030,26.95751922,113.69,113.65,35.75611922]
[1744289254622,26.95751922,113.7,113.65,35.75611922]
[1744289254829,8.7939,113.72,113.66,26.95751922]
[1744289255045,26.95751922,113.7,113.65,57.75341922]
[1744289255422,26.95751922,113.71,113.67,8.7973]
[1744289256466,26.95751922,113.71,113.67,35.75481922]
[1744289256632,26.95751922,113.7,113.63,22.28552314]
[1744289256833,8.7945,113.71,113.64,0.28432314]
[1744289257042,26.95751922,113.67,113.64,8.7997]
[1744289257249,26.95751922,113.7,113.64,8.7997]
[1744289257431,8.7945,113.71,113.66,8.7981]
[1744289257637,8.7938,113.72,113.66,8.7981]
[1744289257835,26.95751922,113.7,113.66,8.7981]
[1744289258042,26.95751922,113.69,113.66,8.7981]
[1744289258555,8.7938,113.72,113.66,8.7981]
[1744289258758,16.3109,113.73,113.67,26.95751922]
[1744289259059,26.95751922,113.71,113.67,26.95751922]
[1744289259362,26.95751922,113.7,113.66,35.75561922]
[1744289259563,26.95751922,113.69,113.66,8.7981]
[1744289260236,8.7945,113.71,113.66,8.7981]
[1744289260436,26.95751922,113.7,113.66,35.75561922]
[1744289260650,7.5178,113.73,113.67,26.95751922]
[1744289260856,8.7923,113.74,113.68,26.95751922]
[1744289261055,0.03,113.76,113.7,26.95751922]
[1744289261234,26.95751922,113.73,113.68,13.0321]
[1744289261442,8.7926,113.74,113.69,8.7958]
[1744289261644,26.95751922,113.71,113.68,8.7965]
[1744289261858,26.95751922,113.74,113.69,26.95751922]
[1744289262066,26.95751922,113.71,113.68,8.7965]
[1744289262672,30.7695,113.75,113.68,8.7965]
[1744289262962,26.95751922,113.71,113.68,8.7965]
[1744289263260,26.95751922,113.7,113.67,8.797]
[1744289263572,21.981,113.74,113.67,8.797]
[1744289263871,26.95751922,113.7,113.67,8.797]
[1744289264364,8.7944,113.71,113.66,35.75561922]
[1744289264545,26.95751922,113.7,113.66,35.75561922]
[1744289264741,26.95751922,113.69,113.65,8.7986]
[1744289264964,26.95751922,113.68,113.65,8.7986]
[1744289265466,8.7944,113.71,113.65,8.7986]
[1744289265671,26.95751922,113.68,113.65,8.7986]
[1744289266055,26.95751922,113.67,113.65,8.7986]
[1744289266365,8.795,113.7,113.63,57.75911922]
[1744289266574,26.95751922,113.68,113.64,26.95751922]
[1744289266877,26.95751922,113.69,113.64,26.95751922]
[1744289267077,26.95751922,113.68,113.63,30.8016]
[1744289267379,26.95751922,113.7,113.65,26.95751922]
[1744289268062,26.95751922,113.7,113.64,0.28432314]
[1744289268261,26.95751922,113.7,113.66,26.95751922]
[1744289268649,26.95751922,113.69,113.65,35.75641922]
[1744289269747,26.95751922,113.7,113.65,35.75641922]
[1744289269946,26.95751922,113.71,113.67,26.95751922]
[1744289270768,26.95751922,113.71,113.68,8.7966]
[1744289271173,26.95751922,113.72,113.68,35.75411922]
[1744289271966,26.95751922,113.71,113.68,8.7966]
[1744289272262,30.7718,113.74,113.68,8.7966]
[1744289272466,8.7919,113.74,113.69,26.95751922]
[1744289272662,26.95751922,113.73,113.7,8.795]
[1744289272972,26.95751922,113.75,113.71,26.95751922]
[1744289274071,26.95751922,113.74,113.71,8.7943]
[1744289274573,8.8207,113.76,113.71,8.7943]
[1744289274777,26.95751922,113.74,113.71,8.7943]
[1744289275576,26.95751922,113.73,113.71,8.7943]
[1744289275750,26.95751922,113.74,113.71,8.7943]
[1744289276255,8.7913,113.75,113.71,8.7943]
[1744289276450,26.95751922,113.74,113.71,8.7943]
[1744289276673,26.95751922,113.73,113.71,8.7943]
[1744289276869,8.7913,113.75,113.71,8.7943]
[1744289277172,26.95751922,113.75,113.71,35.75181922]
[1744289277375,26.95751922,113.75,113.71,8.7943]
[1744289277562,26.95751922,113.74,113.71,8.7943]
[1744289277769,26.95751922,113.73,113.69,12.8611]
[1744289277977,26.95751922,113.7,113.67,22.3971]
[1744289278185,26.95751922,113.7,113.67,8.7971]
[1744289278677,26.95751922,113.69,113.65,26.95751922]
[1744289278877,26.95751922,113.68,113.64,30.7989]
[1744289279083,26.95751922,113.69,113.65,26.95751922]
[1744289279254,8.7947,113.71,113.64,30.7989]
[1744289279459,26.95751922,113.69,113.65,26.95751922]
[1744289280075,26.95751922,113.69,113.64,8.7997]
[1744289280288,26.95751922,113.67,113.64,8.7997]
[1744289280884,26.95751922,113.68,113.64,35.75721922]
[1744289281468,26.95751922,113.69,113.64,35.75721922]
[1744289281683,26.95751922,113.69,113.64,57.75641922]
[1744289281977,26.95751922,113.73,113.68,26.95751922]
[1744289282169,8.0139,113.76,113.7,26.95751922]
[1744289282369,26.98751922,113.76,113.72,26.95751922]
[1744289282564,0.03,113.76,113.72,26.95751922]
[1744289282772,0.03,113.76,113.74,26.95751922]
[1744289283080,0.03,113.76,113.71,31.06432314]
[1744289283081,0.03,113.76,113.75,26.95751922]
[1744289283464,0.03,113.76,113.72,0.28432314]
[1744289283778,0.03,113.76,113.75,26.95751922]
[1744289284005,0.03,113.76,113.71,30.78]
[1744289284272,0.03,113.76,113.73,35.74961922]
[1744289284480,26.98751922,113.76,113.73,8.7921]
[1744289284677,0.03,113.76,113.73,35.74961922]
[1744289285660,0.03,113.76,113.73,8.7921]
[1744289285975,26.95751922,113.74,113.71,8.7943]
[1744289286285,26.95751922,113.74,113.7,8.795]
[1744289286459,26.95751922,113.73,113.7,8.795]
[1744289286664,26.95751922,113.74,113.7,8.795]
[1744289286864,0.03,113.76,113.71,26.95751922]
[1744289287084,0.03,113.76,113.73,26.95751922]
[1744289287287,0.03,113.76,113.71,0.28432314]
[1744289287590,0.03,113.76,113.73,26.95751922]
[1744289287880,26.98751922,113.76,113.72,26.95751922]
[1744289288393,0.03,113.76,113.74,35.74941922]
[1744289288588,0.03,113.76,113.75,26.95751922]
[1744289288775,0.03,113.76,113.74,35.74941922]
[1744289288955,0.03,113.76,113.74,8.7919]
[1744289289161,0.03,113.76,113.74,35.74941922]
[1744289289364,0.03,113.76,113.74,8.7919]
[1744289289591,0.03,113.76,113.75,26.95751922]
[1744289290384,0.03,113.76,113.75,35.74871922]
[1744289292380,0.03,113.76,113.75,36.03304236]
[1744289292575,26.95751922,113.82,113.75,36.03304236]
[1744289292788,26.98751922,113.83,113.78,26.95751922]
[1744289292968,26.95751922,113.82,113.78,26.95751922]
[1744289293168,26.95751922,113.79,113.74,8.7919]
[1744289293369,26.95751922,113.76,113.74,8.7919]
[1744289293569,26.95751922,113.79,113.75,26.95751922]
[1744289293785,26.95751922,113.8,113.76,26.95751922]
[1744289294095,26.95751922,113.77,113.73,8.7924]
[1744289294302,26.95751922,113.76,113.73,8.7924]
[1744289294489,26.03,113.81,113.75,26.95751922]
[1744289294662,26.03,113.81,113.76,26.95751922]
[1744289294663,26.95751922,113.8,113.76,26.95751922]
[1744289294866,0.03,113.81,113.76,26.95751922]
[1744289295177,26.95751922,113.8,113.76,26.95751922]
[1744289295379,26.95751922,113.79,113.75,26.95751922]
[1744289295781,0.03,113.81,113.76,26.95751922]
[1744289296097,0.03,113.81,113.79,26.95751922]
[1744289296470,0.03,113.81,113.8,8.7873]
[1744289296796,0.03,113.81,113.79,26.95751922]
[1744289296797,0.03,113.81,113.79,8.7878]
[1744289296997,26.95751922,113.8,113.77,8.7896]
[1744289297301,26.95751922,113.79,113.75,40.51751922]
[1744289297467,26.95751922,113.8,113.76,35.74751922]
[1744289297669,0.03,113.81,113.77,26.95751922]
[1744289297873,20.4575,113.74,113.58,7.9223]
[1744289298097,26.95751922,113.66,113.6,13.53784609]
[1744289298299,26.95751922,113.66,113.61,26.95751922]
[1744289298469,20.4575,113.74,113.65,26.95751922]
[1744289298673,8.7927,113.73,113.66,26.95751922]
[1744289298891,8.7927,113.73,113.65,26.95751922]
[1744289298892,26.95751922,113.7,113.65,26.95751922]
[1744289299565,26.95751922,113.7,113.66,26.95751922]
[1744289299771,26.95751922,113.71,113.66,26.95751922]
[1744289300405,26.95751922,113.7,113.66,26.95751922]
[1744289300577,26.95751922,113.67,113.64,13.56]
[1744289300777,26.95751922,113.66,113.64,13.56]
[1744289300975,26.95751922,113.66,113.61,26.95751922]
[1744289301378,26.95751922,113.65,113.61,26.95751922]
[1744289301580,26.95751922,113.64,113.63,26.0]
[1744289301789,26.95751922,113.64,113.6,0.063]
[1744289302108,26.95751922,113.62,113.6,0.063]
[1744289302689,26.95751922,113.63,113.6,0.063]
[1744289302898,26.95751922,113.62,113.6,0.063]
[1744289303283,35.75781922,113.64,113.6,27.02051922]
[1744289303683,8.8003,113.64,113.6,27.02051922]
[1744289303986,34.74281922,113.66,113.61,26.95751922]
[1744289304193,34.74281922,113.66,113.62,26.95751922]
[1744289304194,26.95751922,113.66,113.62,26.95751922]
[1744289304484,26.95751922,113.64,113.63,3.28123148]
[1744289304690,26.95751922,113.65,113.63,3.28123148]
[1744289304897,26.95751922,113.65,113.63,0.80201963]
[1744289305093,26.95751922,113.64,113.6,27.02051922]
[1744289305405,8.7982,113.66,113.6,27.02051922]
[1744289305406,26.95751922,113.66,113.62,26.95751922]
[1744289305579,26.95751922,113.66,113.6,8.8657]
[1744289305773,26.95751922,113.65,113.61,26.95751922]
[1744289305980,26.95751922,113.66,113.61,26.95751922]
[1744289306609,8.7958,113.69,113.62,26.95751922]
[1744289306809,26.95751922,113.67,113.62,26.95751922]
[1744289307011,26.95751922,113.67,113.63,26.95751922]
[1744289307310,26.95751922,113.67,113.62,26.95751922]
[1744289307683,26.95751922,113.66,113.62,26.95751922]
[1744289307878,26.95751922,113.64,113.6,27.02051922]
[1744289308188,18.64964886,113.68,113.6,0.063]
[1744289308189,26.95751922,113.62,113.6,0.063]
[1744289308590,35.75951922,113.61,113.6,0.26320458]
[1744289308984,35.75951922,113.61,113.6,0.19941552]
[1744289309386,35.75951922,113.61,113.6,0.15923111]
[1744289309596,35.75951922,113.61,113.6,0.063]
[1744289309801,8.8012,113.62,113.6,0.14412413]
[1744289309991,26.95751922,113.62,113.6,0.13930546]
[1744289310191,26.95751922,113.62,113.6,0.10650913]
[1744289310596,35.75811922,113.63,113.6,0.063]
[1744289310797,26.95751922,113.62,113.6,0.063]
[1744289311895,26.95751922,113.61,113.6,0.063]
[1744289312209,12.9567,113.63,113.6,0.063]
[1744289312391,26.95751922,113.61,113.6,0.063]
[1744289312591,35.75951922,113.61,113.6,0.063]
[1744289312987,62.12626808,113.61,113.6,0.063]
[1744289314288,18.64964886,113.6,113.55,0.063]
[1744289314484,45.60716808,113.56,113.55,30.063]
[1744289314795,26.95751922,113.56,113.55,30.063]
[1744289314994,54.41306808,113.56,113.55,30.063]
[1744289315921,35.76341922,113.56,113.55,0.063]
[1744289316698,35.76341922,113.56,113.52,30.0]
[1744289316903,26.95751922,113.53,113.52,30.0]
[1744289318193,72.5646873,113.53,113.52,30.0]
[1744289318398,18.64964886,113.52,113.46,8.8132]
[1744289318613,26.95751922,113.51,113.48,8.8121]
[1744289318812,13.1838,113.56,113.49,26.95751922]
[1744289319014,26.95751922,113.55,113.51,26.95751922]
[1744289319224,21.3486,113.59,113.54,26.95751922]
[1744289319417,26.95751922,113.58,113.49,26.07352314]
[1744289319599,26.95751922,113.58,113.54,26.95751922]
[1744289319800,26.95751922,113.58,113.5,0.28432314]
[1744289320029,26.95751922,113.58,113.5,5.63]
[1744289320030,26.95751922,113.56,113.5,5.63]
[1744289320235,26.95751922,113.56,113.51,26.95751922]
[1744289320529,26.95751922,113.56,113.52,26.95751922]
[1744289320703,26.95751922,113.56,113.53,8.8082]
[1744289321210,26.95751922,113.58,113.54,26.95751922]
[1744289321405,35.76191922,113.58,113.53,8.8082]
[1744289321602,35.76191922,113.58,113.54,26.95751922]
[1744289321801,26.95751922,113.57,113.53,35.76571922]
[1744289322319,26.95751922,113.58,113.53,30.8288]
[1744289322523,26.95751922,113.59,113.55,26.95751922]
[1744289322705,26.95751922,113.59,113.53,30.8288]
[1744289322905,26.95751922,113.58,113.54,26.95751922]
[1744289323114,26.95751922,113.58,113.53,30.8288]
[1744289323306,8.8031,113.6,113.54,26.95751922]
[1744289323503,26.95751922,113.59,113.55,26.95751922]
[1744289323704,26.95751922,113.58,113.53,30.8288]
[1744289324029,26.95751922,113.58,113.54,26.95751922]
[1744289324425,26.95751922,113.59,113.54,26.95751922]
[1744289324925,35.76131922,113.59,113.54,35.76411922]
[1744289325133,26.95751922,113.59,113.55,26.95751922]
[1744289325330,21.8437,113.62,113.57,26.95751922]
[1744289325521,26.95751922,113.61,113.57,26.95751922]
[1744289326304,26.95751922,113.61,113.56,26.95751922]
[1744289326707,26.95751922,113.6,113.56,26.95751922]
[1744289326931,26.95751922,113.59,113.55,26.95751922]
[1744289327107,52.95751922,113.58,113.51,8.8097]
[1744289327307,26.95751922,113.55,113.52,5.62]
[1744289327523,8.2952,113.58,113.52,32.57751922]
[1744289327734,26.95751922,113.56,113.52,32.57751922]
[1744289327907,26.95751922,113.56,113.52,26.95751922]
[1744289328108,26.95751922,113.56,113.51,35.76721922]
[1744289328731,8.2952,113.58,113.51,35.76721922]
[1744289328732,26.95751922,113.55,113.51,35.76721922]
[1744289329631,26.95751922,113.55,113.51,8.8097]
[1744289329943,35.76431922,113.55,113.51,8.8097]
[1744289330233,26.95751922,113.57,113.53,26.95751922]
[1744289330605,26.95751922,113.56,113.52,26.95751922]
[1744289330937,26.95751922,113.55,113.51,35.76721922]
[1744289331229,18.64964886,113.57,113.5,8.8102]
[1744289331737,26.95751922,113.53,113.5,8.8102]
[1744289331907,35.76651922,113.52,113.48,13.54]
[1744289332110,18.64964886,113.54,113.47,27.02051922]
[1744289332111,26.95751922,113.53,113.49,30.0]
[1744289332337,26.95751922,113.52,113.49,30.0]
[1744289332526,8.8074,113.54,113.49,56.95751922]
[1744289332731,35.76491922,113.54,113.49,56.95751922]
[1744289333035,26.95751922,113.52,113.49,30.0]
[1744289333230,26.95751922,113.5,113.49,30.0]
[1744289333614,18.64964886,113.53,113.49,30.0]
[1744289333813,26.95751922,113.51,113.49,30.0]
[1744289334214,12.8269,113.55,113.49,56.95751922]
[1744289334440,26.95751922,113.54,113.49,56.95751922]
[1744289334742,26.95751922,113.53,113.49,38.8113]
[1744289334936,26.95751922,113.52,113.49,30.0]
[1744289335238,26.95751922,113.54,113.5,26.95751922]
[1744289335606,26.95751922,113.51,113.47,0.063]
[1744289335807,26.95751922,113.48,113.47,0.063]
[1744289336030,26.95751922,113.49,113.45,26.95751922]
[1744289336446,26.95751922,113.48,113.44,8.8152]
[1744289336939,26.95751922,113.47,113.44,8.8152]
[1744289337247,26.95751922,113.48,113.44,8.8152]
[1744289337817,26.95751922,113.47,113.44,8.8152]
[1744289338120,26.95751922,113.45,113.39,8.8191]
[1744289338323,26.95751922,113.43,113.39,8.8191]
[1744289338542,26.95751922,113.42,113.38,22.3595]
[1744289338725,26.95751922,113.43,113.38,22.3595]
[1744289339057,26.95751922,113.44,113.39,26.95751922]
[1744289339211,18.64964886,113.47,113.38,8.8195]
[1744289339418,12.3105,113.48,113.4,8.8183]
[1744289339618,26.95751922,113.46,113.41,26.95751922]
[1744289339844,26.95751922,113.46,113.4,30.8641]
[1744289340016,12.3105,113.48,113.43,26.95751922]
[1744289340216,8.8105,113.5,113.4,44.4041]
[1744289340437,27.46014886,113.5,113.44,26.95751922]
[1744289340612,27.46014886,113.5,113.41,1.40935824]
[1744289340823,26.95751922,113.48,113.45,1.40886133]
[1744289341023,8.8097,113.51,113.46,26.95751922]
[1744289341223,12.7411,113.52,113.49,26.95751922]
[1744289341423,13.54641685,113.53,113.51,26.95751922]
[1744289341620,13.54641685,113.53,113.52,53.91503844]
[1744289342028,13.54641685,113.53,113.52,54.08080157]
[1744289342748,26.95751922,113.6,113.52,38.21556444]
[1744289342935,8.8028,113.6,113.57,26.95751922]
[1744289343244,8.8028,113.6,113.58,26.95751922]
[1744289343451,21.9976,113.65,113.59,40.62949137]
[1744289343636,8.7997,113.64,113.6,40.62949137]
[1744289343841,40.62949137,113.63,113.59,40.62949137]
[1744289344039,71.42839137,113.64,113.6,40.62949137]
[1744289344445,8.7997,113.64,113.6,40.62949137]
[1744289344648,8.7993,113.65,113.62,40.62949137]
[1744289344954,8.7984,113.66,113.63,40.62949137]
[1744289345546,0.03,113.67,113.65,40.62949137]
[1744289345843,0.03,113.67,113.66,40.62949137]
[1744289346451,0.03,113.67,113.65,40.62949137]
[1744289346943,0.03,113.67,113.63,8.8]
[1744289346944,0.03,113.67,113.66,40.62949137]
[1744289347532,0.03,113.67,113.61,30.8057]
[1744289347739,0.03,113.67,113.66,40.62949137]
[1744289348352,0.03,113.67,113.64,40.62949137]
[1744289348556,0.03,113.67,113.66,40.62949137]
[1744289348758,0.03,113.67,113.65,40.62949137]
[1744289349444,0.03,113.67,113.66,40.62949137]
[1744289349629,0.03,113.67,113.66,49.42759137]
[1744289352643,0.03,113.67,113.66,49.71191451]
[1744289354253,0.03,113.67,113.66,40.62949137]
[1744289355843,0.03,113.67,113.65,40.62949137]
[1744289356172,0.03,113.67,113.63,8.8002]
[1744289356173,49.45749137,113.67,113.63,40.62949137]
[1744289356351,40.62949137,113.66,113.61,22.3017]
[1744289356548,40.62949137,113.66,113.62,40.62949137]
[1744289356738,40.62949137,113.66,113.61,8.8017]
[1744289356938,0.03,113.67,113.63,40.62949137]
[1744289357137,0.03,113.67,113.66,40.62949137]
[1744289357362,0.03,113.67,113.65,40.62949137]
[1744289357559,0.03,113.67,113.63,40.62949137]
[1744289357560,40.65949137,113.67,113.63,40.62949137]
[1744289357743,40.62949137,113.66,113.62,40.62949137]
[1744289358360,49.42829137,113.66,113.62,40.62949137]
[1744289358762,49.42829137,113.66,113.62,49.43069137]
[1744289359134,40.62949137,113.66,113.62,49.43069137]
[1744289359337,49.42779137,113.66,113.62,49.43069137]
[1744289359562,49.45719137,113.67,113.62,40.62949137]
[1744289359743,49.45719137,113.67,113.63,40.62949137]
[1744289359944,49.45719137,113.67,113.62,40.62949137]
[1744289360257,49.42959137,113.64,113.6,40.62949137]
[1744289360564,49.42959137,113.64,113.55,309.6183]
[1744289360565,40.62949137,113.62,113.55,22.0162]
[1744289360754,40.62949137,113.62,113.56,8.8059]
[1744289361063,40.62949137,113.61,113.57,40.62949137]
[1744289361238,40.62949137,113.61,113.56,8.8059]
[1744289361439,40.62949137,113.61,113.56,40.62949137]
[1744289361640,40.62949137,113.6,113.55,8.8063]
[1744289361949,40.62949137,113.61,113.56,40.62949137]
[1744289362350,8.8018,113.62,113.57,49.43439137]
[1744289362547,40.62949137,113.61,113.57,49.43439137]
[1744289362752,49.43129137,113.62,113.57,40.62949137]
[1744289363448,40.62949137,113.61,113.57,40.62949137]
[1744289363656,40.62949137,113.59,113.52,54.12949137]
[1744289363836,40.62949137,113.57,113.48,8.8121]
[1744289364034,40.62949137,113.56,113.52,40.62949137]
[1744289364656,49.43539137,113.56,113.52,40.62949137]
[1744289364866,8.8035,113.59,113.54,40.62949137]
[1744289365056,22.3031,113.6,113.55,40.62949137]
[1744289365253,62.93259137,113.6,113.55,40.62949137]
[1744289365569,49.43189137,113.61,113.57,40.62949137]
[1744289365872,49.43069137,113.62,113.58,40.62949137]
[1744289366045,7.5924,113.64,113.58,40.62949137]
[1744289366366,7.5924,113.64,113.61,40.62949137]
[1744289366667,22.2989,113.65,113.62,40.62949137]
[1744289367248,20.8638,113.66,113.63,40.62949137]
[1744289367563,0.03,113.67,113.63,40.62949137]
[1744289367863,0.03,113.67,113.65,40.62949137]
[1744289368466,8.8277,113.67,113.64,40.62949137]
[1744289368944,0.03,113.67,113.65,40.62949137]
[1744289369140,0.03,113.67,113.66,40.62949137]
[1744289369758,0.03,113.67,113.63,30.8016]
[1744289369968,0.03,113.67,113.66,40.62949137]
[1744289370146,0.03,113.67,113.65,40.62949137]
[1744289370545,0.03,113.67,113.64,40.62949137]
[1744289370770,0.03,113.67,113.65,40.62949137]
[1744289370968,0.03,113.67,113.63,8.8004]
[1744289370969,0.03,113.67,113.66,40.62949137]
[1744289371353,0.03,113.67,113.63,8.8004]
[1744289371572,0.03,113.67,113.64,40.62949137]
[1744289371751,40.65949137,113.67,113.63,8.8004]
[1744289371944,0.03,113.67,113.64,40.62949137]
[1744289372153,0.03,113.67,113.66,40.62949137]
[1744289372859,0.03,113.67,113.64,8.7993]
[1744289373060,40.65949137,113.67,113.63,40.62949137]
[1744289373259,40.62949137,113.64,113.59,49.43259137]
[1744289373558,40.62949137,113.6,113.56,40.62949137]
[1744289373757,40.62949137,113.6,113.54,8.8074]
[1744289373969,40.62949137,113.6,113.56,40.62949137]
[1744289374174,40.62949137,113.61,113.57,40.62949137]
[1744289374365,40.62949137,113.59,113.53,22.3079]
[1744289374675,40.62949137,113.54,113.48,30.8415]
[1744289374879,30.8206,113.56,113.48,49.44159137]
[1744289375174,40.62949137,113.52,113.48,40.62949137]
[1744289375351,40.62949137,113.51,113.47,0.063]
[1744289375553,40.62949137,113.5,113.47,0.063]
[1744289375872,40.62949137,113.49,113.47,0.063]
[1744289376078,40.62949137,113.48,113.43,40.62949137]
[1744289376370,40.62949137,113.44,113.39,40.62949137]
[1744289376550,52.29534886,113.48,113.41,40.62949137]
[1744289376876,40.62949137,113.46,113.42,40.62949137]
[1744289377049,8.8132,113.47,113.41,8.8174]
[1744289377050,8.8132,113.47,113.43,40.62949137]
[1744289377258,8.8116,113.49,113.44,40.62949137]
[1744289377473,49.44109137,113.49,113.44,40.62949137]
[1744289377771,40.62949137,113.48,113.44,40.62949137]
[1744289377983,40.62949137,113.47,113.41,8.8174]
[1744289378144,40.62949137,113.47,113.43,40.62949137]
[1744289378348,40.62949137,113.44,113.39,40.62949137]
[1744289378575,40.62949137,113.44,113.4,40.62949137]
[1744289378778,40.62949137,113.44,113.4,8.8181]
[1744289378953,40.62949137,113.44,113.4,49.44759137]
[1744289379152,49.44469137,113.44,113.4,49.44759137]
[1744289379457,49.44469137,113.44,113.39,40.62949137]
[1744289379660,40.62949137,113.43,113.39,40.62949137]
[1744289379870,40.62949137,113.43,113.38,40.62949137]
[1744289380256,40.62949137,113.42,113.37,62.90989137]
[1744289380777,49.44629137,113.42,113.38,40.62949137]
[1744289380970,40.62949137,113.44,113.39,40.62949137]
[1744289381170,40.62949137,113.44,113.4,40.62949137]
[1744289381479,40.62949137,113.44,113.39,40.62949137]